Cogmind - Beta 12 X2 @@@ ROGUE MODE // 2022.09.09 @ 15:52:19 Player: ArabianSandBoa Result: Self-destructed Performance ------------- Evolutions (2) 1000 Regions Visited (5) 1000 Robots Destroyed (48) 240 Value Destroyed (1658) 1658 Prototype IDs (2) 40 Alien Tech Used (0) 0 Bonus (248) 248 TOTAL SCORE: 4186 Bonus ------- High Alert Combat Kills 40 Follower Combat Kills 25 Entered Garrisons 200 Friendly Fire -17 Cogmind --------- Core Integrity 110/550 Matter 219/300 Energy 69/100 System Corruption 4% Temperature Cool (4) Movement Core (700) Ox13 Location -8/Garrison Parts ------- > --- POWER (1) -------- (None) > --- PROPULSION (4) --- (None) > --- UTILITY (4) ------ High-capacity Storage Unit > --- WEAPON (2) ------- (None) > --- INVENTORY (20) --- Improved Ion Engine Reinforced Ion Engine Nuclear Core Airjet Flight Unit Flight Unit VTOL Module Improved Flight Unit Improved Heat Sink Cooling System Splice Drone Bay (6/6) Peak State ------------ > --- POWER ------------ Nuclear Core > --- PROPULSION ------- Wheel Compact Wheel Compact Wheel Flight Unit > --- UTILITY ---------- High-capacity Storage Unit Improved Light Armor Plating Improved Light Armor Plating Hacking Suite > --- WEAPON ----------- Rocket Launcher Maul > --- INVENTORY -------- Improved Ion Engine Nuclear Core Airjet Flight Unit Flight Unit Flight Unit Flight Unit VTOL Module Improved Flight Unit Improved Heat Sink Cooling System Particle Charger Splice Drone Bay Particle Gun Light Cannon [Rating: 24] Favorites ----------- Power Improved Ion Engine Engine Improved Ion Engine Power Core Nuclear Core Propulsion Flight Unit Treads Light Treads Wheel Wheel Flight Unit Flight Unit Utility Small Storage Unit Device Sensor Array Storage Small Storage Unit Hackware Hacking Suite Protection Improved Light Armor Plating Weapon Particle Gun Energy Gun Particle Gun Ballistic Gun Assault Rifle Ballistic Cannon Light Cannon Launcher Rocket Launcher Impact Weapon Maul Build | -11 -10 -9 -9 -8 -8 ------- Run | Scr Mat Mat Min Mat Gar Slots Evolved 4 | . . 2 . 2 . Power . | . . . . . . Propulsion 2 | . . 1 . 1 . Utility 2 | . . 1 . 1 . Weapon . | . . . . . . Parts Attached 57 | 4 9 14 7 8 15 Power 6 | . 1 4 . 1 . Engine 5 | . 1 4 . . . Core 1 | . . . . 1 . Reactor . | . . . . . . Propulsion 15 | 2 3 3 3 2 2 Treads 2 | 2 . . . . . Leg . | . . . . . . Wheel 4 | . 1 . 1 2 . Hover . | . . . . . . Flight 9 | . 2 3 2 . 2 Utility 12 | . 2 3 1 5 1 Device 6 | . 1 1 1 2 1 Storage 2 | . 1 . . 1 . Processor . | . . . . . . Hackware 1 | . . 1 . . . Protection 3 | . . 1 . 2 . Artifact . | . . . . . . Weapon 24 | 2 3 4 3 . 12 Energy Gun 11 | 1 3 2 1 . 4 Energy Cannon . | . . . . . . Ballistic Gun 1 | 1 . . . . . Ballistic Cannon 6 | . . 1 1 . 4 Launcher 3 | . . . 1 . 2 Special Weapon . | . . . . . . Impact Weapon 3 | . . 1 . . 2 Slashing Weapon . | . . . . . . Piercing Weapon . | . . . . . . Special Melee Weapon . | . . . . . . Unidentified Prototypes 2 | . . 1 . 1 . Parts Lost 25 | . 1 3 4 . 17 Power 2 | . . 1 . . 1 Propulsion 11 | . 1 1 3 . 6 Utility 6 | . . 1 1 . 4 Weapon 6 | . . . . . 6 Highest Loss Streak 8 | . 1 2 2 . 8 To Critical Strikes 1 | . . . . . 1 Average Slot Usage (%) 90 | . 75 98 93 84 87 Engine 8 | . 5 10 11 4 . Core 1 | . . . . 4 8 Wheel 8 | . 5 4 8 13 16 Flight 19 | . 19 28 19 9 12 Device 9 | . 6 14 10 7 1 Storage 10 | . 12 11 11 9 9 Hackware 7 | . . 6 11 9 7 Protection 2 | . . . . 9 13 Energy Gun 11 | . 20 17 11 9 3 Ballistic Cannon 5 | . . 2 8 9 5 Launcher 1 | . . . 2 . 1 Impact Weapon 1 | . . 1 . . 6 Naked Turns . | . . . . . . Heaviest Build 60 | 2 16 22 20 59 60 Greatest Support 42 | 20 10 12 12 42 42 Greatest Overweight (x) 6 | . 5 5 6 2 3 Average Overweight (x) 1 | . . 1 2 1 1 Largest Inventory Capacity 20 | 5 8 8 8 20 20 Average Capacity 10 | 5 7 8 8 10 20 Most Carried 15 | 5 8 8 8 11 15 Average Carried 8 | 2 5 7 8 8 12 Final Capacity 20 | 5 8 8 8 20 20 Final Carried 11 | 5 6 8 8 11 11 Class Distribution -------------------- 86% | Mutant 13% | Scavenger-Mutant Dominant Class ---------------- Mutant | -10/Materials Mutant | -9/Materials Mutant | -9/Mines Scavenger-Mutant | -8/Materials Scavenger-Mutant | -8/Garrison Resources | -11 -10 -9 -9 -8 -8 ----------- Run | Scr Mat Mat Min Mat Gar Matter Collected 1000 | 236 95 166 117 91 295 Remotely . | . . . . . . Salvage Created 1313 | . 148 629 98 160 278 Parts 86 | . 11 46 13 5 11 Haulers Intercepted 3 | . . 3 . . . Recyclers Shooed 3 | . . 1 . 2 . Parts Field Recycled . | . . . . . . Retrieved Matter . | . . . . . . Parts Self-Destructed . | . . . . . . Prevented . | . . . . . . Kills | -11 -10 -9 -9 -8 -8 ------- Run | Scr Mat Mat Min Mat Gar Combat Hostiles Destroyed 38 | . 6 10 7 . 15 Melee 1 | . . . . . 1 Guns 19 | . 6 8 2 . 3 Cannons 4 | . . 2 . . 2 AOE 14 | . . . 5 . 9 Classes Destroyed 12 | . 2 4 2 1 3 Tunneler 1 | . . . 1 . . Hauler 3 | . . 3 . . . Recycler 2 | . . . . 2 . Operator 2 | . . 2 . . . Watcher 2 | . . 2 . . . Swarmer 15 | . 3 . 6 . 6 Grunt 12 | . 3 5 . . 4 Brawler 2 | . . . . . 2 Duelist 1 | . . . 1 . . Sentry 5 | . . 5 . . . Hunter 2 | . . . . . 2 Behemoth 1 | . . . . . 1 Best Kill Streak 7 | . 3 3 3 2 7 Combat Bots Only 7 | . 3 3 3 . 7 Max Kills in Single Turn 2 | . 2 2 2 1 2 Gunslinging 1 | . 1 . . . . Exploded 2 | . . . 2 . 2 Melee 1 | . . . . . 1 Uniques/NPCs Destroyed . | . . . . . . Combat | -11 -10 -9 -9 -8 -8 -------- Run | Scr Mat Mat Min Mat Gar Damage Taken 2622 | . 178 427 132 . 1885 Core 603 | . 38 103 22 . 440 Absorbed by Shields . | . . . . . . Core Remaining (%) 84 | 100 84 . 68 . . Volleys Fired 122 | . 23 39 14 5 41 Largest 2 | . 2 2 2 2 2 Hottest 130 | . 130 130 100 100 100 Shots Fired 187 | . 42 72 17 10 46 Gun 123 | . 42 63 9 5 4 Cannon 45 | . . 9 3 5 28 Launcher 19 | . . . 5 . 14 Special . | . . . . . . Kinetic 47 | . 2 9 3 5 28 Thermal 121 | . 40 63 9 5 4 Explosive 19 | . . . 5 . 14 Electromagnetic . | . . . . . . Robot Hit Streak 16 | . 4 10 5 3 16 Robot Miss Streak 5 | . 3 2 1 4 5 Penetration Max . | . . . . . . Secondary Targets 3 | . 1 2 . . . Max Gunslinging Chain 1 | . 1 1 . . . Shots Hit Robots 121 | . 23 50 9 6 33 Core Hits 80 | . 8 24 9 3 36 Critical Kills . | . . . . . . Critical Parts Destroyed . | . . . . . . Critical Strikes 2 | . 1 . . 1 . Burn 1 | . 1 . . . . Blast 1 | . . . . 1 . Melee Attacks 13 | . . . . . 13 Impact 13 | . . . . . 13 Slashing . | . . . . . . Piercing . | . . . . . . Sneak Attacks . | . . . . . . Combat Hostiles . | . . . . . . Follow-up Attacks . | . . . . . . Damage Inflicted 3376 | . 355 809 508 91 1613 Guns 1311 | . 355 737 126 27 66 Cannons 691 | . . 72 17 64 538 Explosions 1227 | . . . 365 . 862 Melee 147 | . . . . . 147 Ramming . | . . . . . . Kinetic 715 | . 24 72 17 64 538 Thermal 1287 | . 331 737 126 27 66 Explosive 1227 | . . . 365 . 862 Electromagnetic . | . . . . . . Impact 147 | . . . . . 147 Slashing . | . . . . . . Piercing . | . . . . . . Highest Corruption 4 | . . . . . 4 Average Corruption 3 | . . . . . 3 Corruption Purged . | . . . . . . Corruption Blocked . | . . . . . . Effects 1 | . . . . . 1 Message Errors 1 | . . . . . 1 Overload Shots . | . . . . . . Overflow Damage 100 | . . . 36 . 64 Projectiles . | . . . . . . Explosions 100 | . . . 36 . 64 Melee . | . . . . . . Knockbacks 3 | . . 1 2 . . Impact . | . . . . . . Kinetic 2 | . . 1 1 . . Secondary 1 | . . . 1 . . Self-Inflicted Damage 255 | . . . 16 . 239 Shots 8 | . . . 1 . 7 Rammed 1 | . . . 1 . . Targets Rammed 1 | . . . 1 . . Kicked . | . . . . . . Crushed . | . . . . . . Highest Temperature 306 | . 276 306 100 117 117 Average Temperature 74 | . 48 104 42 62 29 Received Heat Transfer 633 | . 87 204 . . 342 Effects 1 | . . 1 . . . Interference 1 | . . 1 . . . Siege Activations . | . . . . . . Robots Corrupted . | . . . . . . Combat Hostiles . | . . . . . . Parts Fried . | . . . . . . Impact Corruptions 1 | . . . . . 1 Robots Melted . | . . . . . . Combat Hostiles . | . . . . . . Parts Melted 4 | . . 1 2 . 1 Heat Transferred 3145 | . 888 1739 296 74 148 Parts Sabotaged . | . . . . . . Parts Stolen . | . . . . . . Parts Stripped . | . . . . . . Power Chain Reactions . | . . . . . . Missiles Intercepted . | . . . . . . Alert | -11 -10 -9 -9 -8 -8 ------- Run | Scr Mat Mat Min Mat Gar Peak Influence 427 | . 204 318 223 49 427 Initial 97 | . . 85 97 9 31 Average 148 | . 107 203 117 25 243 Maximum Alert Level 2 | . 1 1 1 . 2 Low Security (%) 73 | 100 95 41 89 100 43 Level 1 23 | . 4 58 10 . 40 Level 2 2 | . . . . . 15 Level 3 . | . . . . . . Level 4 . | . . . . . . Level 5 . | . . . . . . High Security . | . . . . . . Max Security . | . . . . . . Squads Dispatched 7 | . 2 4 . 1 . Investigation 2 | . . 2 . . . Extermination . | . . . . . . Reinforcement 4 | . 2 2 . . . Assault . | . . . . . . Garrison 1 | . . . . 1 . Intercept . | . . . . . . Searches Triggered . | . . . . . . Construction Impeded . | . . . . . . Haulers Reinforced . | . . . . . . Active Scanning Responses . | . . . . . . Cargo Convoy Interrupts . | . . . . . . Stealth | -11 -10 -9 -9 -8 -8 --------- Run | Scr Mat Mat Min Mat Gar Distress Signals 3 | . 1 1 . 1 . Communications Jammed . | . . . . . . Distress Signals . | . . . . . . Times Spotted 57 | . 11 17 7 6 16 Peak Tracking Total 6 | . 4 3 3 6 4 Tactical Retreats 3 | . 1 1 . . 1 Traps | -11 -10 -9 -9 -8 -8 ------- Run | Scr Mat Mat Min Mat Gar Traps Triggered 2 | . 1 1 . . . Indirectly . | . . . . . . Trap Hack Attempts . | . . . . . . Triggered . | . . . . . . Disarmed . | . . . . . . Reprogrammed . | . . . . . . Reused . | . . . . . . Traps Extracted . | . . . . . . Installed . | . . . . . . Triggered . | . . . . . . Machines | -11 -10 -9 -9 -8 -8 ---------- Run | Scr Mat Mat Min Mat Gar Machines Disabled 5 | . 1 . 2 . 2 Max in Single Turn 1 | . 1 . 1 . 1 Garrison Relay 2 | . . . . . 2 Machines Sabotaged . | . . . . . . Overloaded Fab Kills . | . . . . . . Hacking | -11 -10 -9 -9 -8 -8 --------- Run | Scr Mat Mat Min Mat Gar Machines Accessed 7 | . 2 1 1 1 2 Terminals 3 | . 1 . . . 2 Fabricators . | . . . . . . Repair Stations . | . . . . . . Recycling Units 2 | . 1 1 . . . Scanalyzers . | . . . . . . Garrison Access 1 | . . . . 1 . Total Hacks 19 | . 11 3 1 1 3 Successful 11 | . 5 1 1 1 3 Failed 8 | . 6 2 . . . Catastrophic . | . . . . . . Database Lockouts . | . . . . . . Manual 9 | . 8 . . . 1 Terminals 11 | . 8 . . . 3 Fabricators . | . . . . . . Repair Stations . | . . . . . . Recycling Units 6 | . 3 3 . . . Scanalyzers . | . . . . . . Garrison Access 1 | . . . . 1 . Terminal Hacks 7 | . 3 . 1 . 3 Open Door 1 | . . . 1 . . Emergency Access Points 1 | . . . . . 1 Locate Traps 1 | . 1 . . . . Hauler Manifests 1 | . 1 . . . . Zone Layout 1 | . 1 . . . . Garrison Registry 2 | . . . . . 2 Fabricator Hacks . | . . . . . . Repair Station Hacks . | . . . . . . Recycling Unit Hacks 2 | . 1 1 . . . Retrieve Components 2 | . 1 1 . . . Scanalyzer . | . . . . . . Garrison Access Hacks 1 | . . . . 1 . Unlock Access 1 | . . . . 1 . Unauthorized Hacks 1 | . 1 . . . . Terminals 1 | . 1 . . . . Botnet 1 | . 1 . . . . Fabricators . | . . . . . . Repair Stations . | . . . . . . Recycling Units . | . . . . . . Scanalyzers . | . . . . . . Garrison Access . | . . . . . . Data Cores Recovered . | . . . . . . Used . | . . . . . . Hacking Detections 5 | . 2 1 . . 2 Full Trace Events 1 | . . 1 . . . Feedback Events . | . . . . . . Feedback Blocked . | . . . . . . Robot Schematics Acquired . | . . . . . . Robots Built . | . . . . . . Authchips . | . . . . . . Time . | . . . . . . Total Robot Build Rating . | . . . . . . Part Schematics Acquired . | . . . . . . Parts Built . | . . . . . . Authchips . | . . . . . . Time . | . . . . . . Total Part Build Rating . | . . . . . . Parts Repaired . | . . . . . . Time . | . . . . . . Parts Recycled . | . . . . . . Recycled Matter . | . . . . . . Retrieved Matter . | . . . . . . Retrieved Components . | . . . . . . Parts Scanalyzed . | . . . . . . Part Schematics Acquired . | . . . . . . Parts Damaged . | . . . . . . Bothacking | -11 -10 -9 -9 -8 -8 ------------ Run | Scr Mat Mat Min Mat Gar Used RIF Installer . | . . . . . . Robots Hacked . | . . . . . . Non-combat . | . . . . . . Combat . | . . . . . . Robot Hacks Applied . | . . . . . . Relay Couplers Released 10 | . . . . . 10 Machine Destruction 10 | . . . . . 10 Fabnet Peak Effective % . | . . . . . . Robots Rewired . | . . . . . . Allies Hacked . | . . . . . . Hacks Repelled . | . . . . . . Allies | -11 -10 -9 -9 -8 -8 -------- Run | Scr Mat Mat Min Mat Gar Total Allies 3 | . . . 3 . . Largest Group 3 | . . . 3 1 1 Highest-Rated Group 40 | . . . 40 16 16 Highest-Rated Ally 16 | . . . 16 16 16 Total Orders . | . . . . . . Ally Attacks 11 | . . . 8 1 2 Total Damage 131 | . . . 101 . 30 Kills 1 | . . . 1 . . Allies Corrupted . | . . . . . . Allies Melted . | . . . . . . Intel | -11 -10 -9 -9 -8 -8 ------- Run | Scr Mat Mat Min Mat Gar Robot Analysis Total . | . . . . . . Derelict Logs Recovered 1 | . . . 1 . . Drone Launches . | . . . . . . Drone Recoveries . | . . . . . . Exploration | -11 -10 -9 -9 -8 -8 ------------- Run | Scr Mat Mat Min Mat Gar Turns Passed 2445 | 36 298 460 1109 113 429 Spaces Moved 1318 | 47 149 256 579 71 216 Core 217 | 46 29 . 142 . . Treads 1 | 1 . . . . . Legs . | . . . . . . Wheels 628 | . 61 115 165 71 216 Hover . | . . . . . . Flight 472 | . 59 141 272 . . Fastest Speed 37 | 50 37 95 95 90 108 Average Speed 135 | 52 66 106 181 104 123 Slowest Speed 435 | 160 300 435 365 110 145 Overloaded Moves . | . . . . . . Propulsion Burnouts . | . . . . . . Robots Hopped . | . . . . . . Cave-ins Triggered . | . . . . . . Exploration Rate (%) 36 | 4 42 37 89 10 38 Regions Visited 5 Branch Regions 1 Pre-discovered Areas . | . . . . . . Known Exits Taken 1 | . . . . 1 . Unknown Exits Taken 4 | 1 1 1 1 . . Scrap Searched 2 | . . . 2 . . Spaces Dug 10 | . . . . . 10 Terrain Destroyed 84 | . . . 51 . 33 Melee . | . . . . . . Projectile . | . . . . . . AOE 84 | . . . 51 . 33 Terrain Rammed . | . . . . . . Walls Destroyed . | . . . . . . Machines Disabled . | . . . . . . Actions | -11 -10 -9 -9 -8 -8 --------- Run | Scr Mat Mat Min Mat Gar Total 1745 | 56 306 369 613 99 302 Wait 182 | 1 113 46 11 2 9 Move 1314 | 46 148 255 578 71 216 Hop . | . . . . . . Pick Up 34 | 4 7 9 1 7 6 Fast Attach 21 | 4 3 5 3 5 1 Attach 19 | . 6 5 . . 8 Detach 5 | 1 2 . . . 2 Swap 17 | . . 4 4 3 6 Drop 17 | . 4 6 1 6 . Fire 122 | . 23 39 14 5 41 Melee 13 | . . . . . 13 Ram 1 | . . . 1 . . Kick . | . . . . . . Crush . | . . . . . . Escape Stasis . | . . . . . . Rewire . | . . . . . . Trap . | . . . . . . Miscellaneous . | . . . . . . Route ------- -11/Scrapyard -10/Materials (discovered 3 exits: *Mat x2 / [*Min]) -9/Materials -9/Mines (discovered 2 exits: *Mat x2) -8/Materials -8/Garrison (discovered 3 exits: [Mat x3]) History --------- Turn | Location | Event 20 | -11/Scrapyard | Discovered new exit (range 16) 37 | -11/Scrapyard | Entered Materials 41 | -10/Materials | Discovered new exit (range 15) 259 | -10/Materials | Discovered new exit (range 12) 302 | -10/Materials | Build established: Mutant 320 | -10/Materials | Discovered new exit (range 13) 335 | -10/Materials | Entered another Materials area 335 | -9/Materials | Evolved 2 slots: Propulsion x1, Utility x1 790 | -9/Materials | Discovered new exit (range 5) 795 | -9/Materials | Entered Mines 802 | -9/Mines | Received a Rocket Launcher from a helpful Derelict 905 | -9/Mines | Found the Drone Emporium 912 | -9/Mines | Found Prototype Device 958 | -9/Mines | Discovered new exit (range 8) 979 | -9/Mines | Learned location of 1 exit from Lower Caves 1111 | -9/Mines | Assisted by bots powering up and referring to "LRC-V3" 1298 | -9/Mines | Discovered new exit (range 8) 1904 | -9/Mines | Entered Materials 1904 | -8/Materials | Accompanied by 1 ally 1904 | -8/Materials | Evolved 2 slots: Propulsion x1, Utility x1 1962 | -8/Materials | Identified Splice Drone Bay 1974 | -8/Materials | Garrison activated, responded to threat 2017 | -8/Materials | Identified exit to Garrison 2017 | -8/Materials | Entered Garrison 2017 | -8/Garrison | Accompanied by 1 ally 2044 | -8/Garrison | Discovered new exit (range 48) 2044 | -8/Garrison | Discovered new exit (range 60) 2044 | -8/Garrison | Discovered new exit (range 47) 2084 | -8/Garrison | Triggered checkpoint 2132 | -8/Garrison | Garrison Relay disabled 2140 | -8/Garrison | Discovered new exit (range 70) 2140 | -8/Garrison | Discovered new exit (range 82) 2140 | -8/Garrison | Discovered new exit (range 50) 2202 | -8/Garrison | Triggered checkpoint 2255 | -8/Garrison | Destroyed 7 combat bots 2308 | -8/Garrison | Garrison Relay disabled 2328 | -8/Garrison | Triggered checkpoint 2392 | -8/Garrison | Lost 7 parts (2n3u2w) 2401 | -8/Garrison | Spotted B-75 Beast 2401 | -8/Garrison | Spotted B-75 Beast 2427 | -8/Garrison | Core integrity fell below 50% 2442 | -8/Garrison | Destroyed B-75 Beast 2446 | -8/Garrison | Self-destructed Last Messages --------------- 02371_ G-47 Trooper destroyed. 02374_ Acquired 30 matter. 02377_ Acquired Rnf. Ion Engine. 02378_ Acquired 20 matter. 02413_ Acquired Hvy. Flak Cannon. 02414_ B-75 Beast springs to life. 02420_ 7EH2L